{"text_format":"1","workbook":"xlsx","n_sheets":9,"sheets":["Synthèse","Risques","Scénarios","ScnRisques","Mesures","ScnMes","Histoire","Contexte","Référentiel"],"not_rendered":{"charts":0,"images":0,"macros":1,"external_links":0,"defined_names":19,"comments":0,"pivot_tables":0},"unopened":[],"bounds":{"document_bytes":16777216,"sheet_cells":100000,"rows_first":2000,"rows_last":500,"rows_between":2000,"halvings":0,"cell_chars":16384,"cell_head_chars":4096},"cells_cut":0,"cells_raw":0,"read":"whole","date_system":"1900"}

{"sheet":"Synthèse","index":0,"n_rows":16,"n_cols":12,"rows_kept":16,"cut":false,"hidden":false,"merged":[]}
["Risques courants par niveau",null,null,null,null,null,null,"Historique du risque courant"]
["Niveau","C","D","I","Total",null,null,"Date","C","D","I","Global"]
["0-NA",0,0,0,{"$f":"SUM(SynthèseDétail[[#This Row],[C]:[I]])","v":0},null,null,"2019-10-15T15:33:31",2.0413926851582249,2.0413926851582249,3.0413926851582249,3.12057393120585]
["1-Insignifiant",1,1,0,{"$f":"SUM(SynthèseDétail[[#This Row],[C]:[I]])","v":2}]
["2-Faible",1,1,1,{"$f":"SUM(SynthèseDétail[[#This Row],[C]:[I]])","v":3}]
["3-Important",0,0,1,{"$f":"SUM(SynthèseDétail[[#This Row],[C]:[I]])","v":1}]
["4-Critique",0,0,0,{"$f":"SUM(SynthèseDétail[[#This Row],[C]:[I]])","v":0}]
["5-Intolérable",0,0,0,{"$f":"SUM(SynthèseDétail[[#This Row],[C]:[I]])","v":0}]
["Total",{"$f":"SUBTOTAL(109,SynthèseDétail[C])","v":2},{"$f":"SUBTOTAL(109,SynthèseDétail[D])","v":2},{"$f":"SUBTOTAL(109,SynthèseDétail[I])","v":2},{"$f":"SUBTOTAL(109,SynthèseDétail[Total])","v":6}]
[]
[]
["Niveau de risque cumulé"]
["Etape","C","D","I","Global"]
["Ri",4.0413926851582254,5.0413926851582254,5.0413926851582254,5.363611979892144]
["Rc",2.0413926851582249,2.0413926851582249,3.0413926851582249,3.12057393120585]
["Rf",2.0413926851582249,2.0413926851582249,2.0413926851582249,2.5185139398778875]

{"sheet":"Risques","index":1,"n_rows":7,"n_cols":11,"rows_kept":7,"cut":false,"hidden":false,"merged":[]}
["ID","Crit.","Scope","Libellé","Gravité","SVi","SVc","SVf","Ri","Rc","Rf"]
["R03","I","Base","Incapacité de respecter le RPO contractuel","2-Importante",11000,1010,20,"4-Critique","3-Important","1-Insignifiant"]
["R04","I","Base","Corruption des données vivantes","3-Critique",10000,10,10,"5-Intolérable","2-Faible","2-Faible"]
["R01","C","Base","Divulgation de données des applications hébergées","3-Critique",3000,30,30,"4-Critique","2-Faible","2-Faible"]
["R05","D","Base","Applications inaccessibles pour les utilisateurs","3-Critique",10000,10,10,"5-Intolérable","2-Faible","2-Faible"]
["R06","D","Base","Serveurs inaccessibles pour les administrateurs des clients","2-Importante",20000,20,20,"4-Critique","1-Insignifiant","1-Insignifiant"]
["R02","C","Base","Divulgation de la liste des administrateurs des clients","2-Importante",1000,10,10,"3-Important","1-Insignifiant","1-Insignifiant"]

{"sheet":"Scénarios","index":2,"n_rows":9,"n_cols":11,"rows_kept":9,"cut":false,"hidden":false,"merged":[]}
["ID","Source","Vecteur","Mode","Libellé","Vi","Vc","Vf","M.Eff.","M.Prog.","ERREUR"]
["SC1","PER-ADMIN-MLD","CAN_GESTPER","USG","Droits d'accès maintenus à tort","3-Probable","1-Improbable","1-Improbable",{"$f":"COUNTIFS(ScnMes[SCN],Scénarios[[#This Row],[ID]],ScnMes[Etat],\"E\")","v":1},{"$f":"COUNTIFS(ScnMes[SCN],Scénarios[[#This Row],[ID]],ScnMes[Etat],\"P\")","v":0},{"$f":"OR(AND(Scénarios[[#This Row],[Vi]]<>Scénarios[[#This Row],[Vc]],Scénarios[[#This Row],[M.Eff.]]=0),AND(Scénarios[[#This Row],[Vc]]<>Scénarios[[#This Row],[Vf]],Scénarios[[#This Row],[M.Prog.]]=0))","v":false}]
["SC2","EXT-LOW-MLV","MAT_PC_ADMIN","PTE","Vol du PC portable d'un administrateur","3-Probable","1-Improbable","1-Improbable",{"$f":"COUNTIFS(ScnMes[SCN],Scénarios[[#This Row],[ID]],ScnMes[Etat],\"E\")","v":2},{"$f":"COUNTIFS(ScnMes[SCN],Scénarios[[#This Row],[ID]],ScnMes[Etat],\"P\")","v":0},{"$f":"OR(AND(Scénarios[[#This Row],[Vi]]<>Scénarios[[#This Row],[Vc]],Scénarios[[#This Row],[M.Eff.]]=0),AND(Scénarios[[#This Row],[Vc]]<>Scénarios[[#This Row],[Vf]],Scénarios[[#This Row],[M.Prog.]]=0))","v":false}]
["SC3","PER-ADMIN-MLD","MAT_STOR","DEP","Espace de sauvegarde saturé","3-Probable","3-Probable","1-Improbable",{"$f":"COUNTIFS(ScnMes[SCN],Scénarios[[#This Row],[ID]],ScnMes[Etat],\"E\")","v":0},{"$f":"COUNTIFS(ScnMes[SCN],Scénarios[[#This Row],[ID]],ScnMes[Etat],\"P\")","v":1},{"$f":"OR(AND(Scénarios[[#This Row],[Vi]]<>Scénarios[[#This Row],[Vc]],Scénarios[[#This Row],[M.Eff.]]=0),AND(Scénarios[[#This Row],[Vc]]<>Scénarios[[#This Row],[Vf]],Scénarios[[#This Row],[M.Prog.]]=0))","v":false}]
["SC4","PER-ADMIN-MLD","MAT_RSX","MOD","Mise en mode debug d'un port de switch","2-Possible","2-Possible","2-Possible",{"$f":"COUNTIFS(ScnMes[SCN],Scénarios[[#This Row],[ID]],ScnMes[Etat],\"E\")","v":0},{"$f":"COUNTIFS(ScnMes[SCN],Scénarios[[#This Row],[ID]],ScnMes[Etat],\"P\")","v":0},{"$f":"OR(AND(Scénarios[[#This Row],[Vi]]<>Scénarios[[#This Row],[Vc]],Scénarios[[#This Row],[M.Eff.]]=0),AND(Scénarios[[#This Row],[Vc]]<>Scénarios[[#This Row],[Vf]],Scénarios[[#This Row],[M.Prog.]]=0))","v":false}]
["SC5","EXT-LOW-MLV","MAT_SVR","PTE","Serveur volé lors d'un transfert entre salles","3-Probable","1-Improbable","1-Improbable",{"$f":"COUNTIFS(ScnMes[SCN],Scénarios[[#This Row],[ID]],ScnMes[Etat],\"E\")","v":1},{"$f":"COUNTIFS(ScnMes[SCN],Scénarios[[#This Row],[ID]],ScnMes[Etat],\"P\")","v":0},{"$f":"OR(AND(Scénarios[[#This Row],[Vi]]<>Scénarios[[#This Row],[Vc]],Scénarios[[#This Row],[M.Eff.]]=0),AND(Scénarios[[#This Row],[Vc]]<>Scénarios[[#This Row],[Vf]],Scénarios[[#This Row],[M.Prog.]]=0))","v":false}]
["SC6","MAT","MAT_STOR","DET","Perte d'un disque de données","4-Certain","1-Improbable","1-Improbable",{"$f":"COUNTIFS(ScnMes[SCN],Scénarios[[#This Row],[ID]],ScnMes[Etat],\"E\")","v":1},{"$f":"COUNTIFS(ScnMes[SCN],Scénarios[[#This Row],[ID]],ScnMes[Etat],\"P\")","v":0},{"$f":"OR(AND(Scénarios[[#This Row],[Vi]]<>Scénarios[[#This Row],[Vc]],Scénarios[[#This Row],[M.Eff.]]=0),AND(Scénarios[[#This Row],[Vc]]<>Scénarios[[#This Row],[Vf]],Scénarios[[#This Row],[M.Prog.]]=0))","v":false}]
["SC7","MAT","LOG_SYST","DET","Panne du bastion d'administration","4-Certain","1-Improbable","1-Improbable",{"$f":"COUNTIFS(ScnMes[SCN],Scénarios[[#This Row],[ID]],ScnMes[Etat],\"E\")","v":1},{"$f":"COUNTIFS(ScnMes[SCN],Scénarios[[#This Row],[ID]],ScnMes[Etat],\"P\")","v":0},{"$f":"OR(AND(Scénarios[[#This Row],[Vi]]<>Scénarios[[#This Row],[Vc]],Scénarios[[#This Row],[M.Eff.]]=0),AND(Scénarios[[#This Row],[Vc]]<>Scénarios[[#This Row],[Vf]],Scénarios[[#This Row],[M.Prog.]]=0))","v":false}]
["SC8","EXT-LOW-MLD","RSX_EXT","PTE","Coupure du lien Internet","4-Certain","1-Improbable","1-Improbable",{"$f":"COUNTIFS(ScnMes[SCN],Scénarios[[#This Row],[ID]],ScnMes[Etat],\"E\")","v":1},{"$f":"COUNTIFS(ScnMes[SCN],Scénarios[[#This Row],[ID]],ScnMes[Etat],\"P\")","v":0},{"$f":"OR(AND(Scénarios[[#This Row],[Vi]]<>Scénarios[[#This Row],[Vc]],Scénarios[[#This Row],[M.Eff.]]=0),AND(Scénarios[[#This Row],[Vc]]<>Scénarios[[#This Row],[Vf]],Scénarios[[#This Row],[M.Prog.]]=0))","v":false}]

{"sheet":"ScnRisques","index":3,"n_rows":11,"n_cols":6,"rows_kept":11,"cut":false,"hidden":false,"merged":[]}
["SCN","RSK","Scénario","Risque","Vc","Rc"]
["SC3","R03",{"$f":"VLOOKUP(ScnRisques[[#This Row],[SCN]],Scénarios[],SCN_Label,FALSE)","v":"Espace de sauvegarde saturé"},{"$f":"VLOOKUP(ScnRisques[[#This Row],[RSK]],Risques[],RSK_Label,FALSE)","v":"Incapacité de respecter le RPO contractuel"},{"$f":"VLOOKUP(ScnRisques[[#This Row],[SCN]],Scénarios[],SCN_Vc,FALSE)","v":"3-Probable"},{"$f":"VLOOKUP(ScnRisques[[#This Row],[RSK]],Risques[],RSK_Rc,FALSE)","v":"3-Important"}]
["SC6","R03",{"$f":"VLOOKUP(ScnRisques[[#This Row],[SCN]],Scénarios[],SCN_Label,FALSE)","v":"Perte d'un disque de données"},{"$f":"VLOOKUP(ScnRisques[[#This Row],[RSK]],Risques[],RSK_Label,FALSE)","v":"Incapacité de respecter le RPO contractuel"},{"$f":"VLOOKUP(ScnRisques[[#This Row],[SCN]],Scénarios[],SCN_Vc,FALSE)","v":"1-Improbable"},{"$f":"VLOOKUP(ScnRisques[[#This Row],[RSK]],Risques[],RSK_Rc,FALSE)","v":"3-Important"}]
["SC6","R04",{"$f":"VLOOKUP(ScnRisques[[#This Row],[SCN]],Scénarios[],SCN_Label,FALSE)","v":"Perte d'un disque de données"},{"$f":"VLOOKUP(ScnRisques[[#This Row],[RSK]],Risques[],RSK_Label,FALSE)","v":"Corruption des données vivantes"},{"$f":"VLOOKUP(ScnRisques[[#This Row],[SCN]],Scénarios[],SCN_Vc,FALSE)","v":"1-Improbable"},{"$f":"VLOOKUP(ScnRisques[[#This Row],[RSK]],Risques[],RSK_Rc,FALSE)","v":"2-Faible"}]
["SC5","R01",{"$f":"VLOOKUP(ScnRisques[[#This Row],[SCN]],Scénarios[],SCN_Label,FALSE)","v":"Serveur volé lors d'un transfert entre salles"},{"$f":"VLOOKUP(ScnRisques[[#This Row],[RSK]],Risques[],RSK_Label,FALSE)","v":"Divulgation de données des applications hébergées"},{"$f":"VLOOKUP(ScnRisques[[#This Row],[SCN]],Scénarios[],SCN_Vc,FALSE)","v":"1-Improbable"},{"$f":"VLOOKUP(ScnRisques[[#This Row],[RSK]],Risques[],RSK_Rc,FALSE)","v":"2-Faible"}]
["SC2","R01",{"$f":"VLOOKUP(ScnRisques[[#This Row],[SCN]],Scénarios[],SCN_Label,FALSE)","v":"Vol du PC portable d'un administrateur"},{"$f":"VLOOKUP(ScnRisques[[#This Row],[RSK]],Risques[],RSK_Label,FALSE)","v":"Divulgation de données des applications hébergées"},{"$f":"VLOOKUP(ScnRisques[[#This Row],[SCN]],Scénarios[],SCN_Vc,FALSE)","v":"1-Improbable"},{"$f":"VLOOKUP(ScnRisques[[#This Row],[RSK]],Risques[],RSK_Rc,FALSE)","v":"2-Faible"}]
["SC1","R01",{"$f":"VLOOKUP(ScnRisques[[#This Row],[SCN]],Scénarios[],SCN_Label,FALSE)","v":"Droits d'accès maintenus à tort"},{"$f":"VLOOKUP(ScnRisques[[#This Row],[RSK]],Risques[],RSK_Label,FALSE)","v":"Divulgation de données des applications hébergées"},{"$f":"VLOOKUP(ScnRisques[[#This Row],[SCN]],Scénarios[],SCN_Vc,FALSE)","v":"1-Improbable"},{"$f":"VLOOKUP(ScnRisques[[#This Row],[RSK]],Risques[],RSK_Rc,FALSE)","v":"2-Faible"}]
["SC8","R05",{"$f":"VLOOKUP(ScnRisques[[#This Row],[SCN]],Scénarios[],SCN_Label,FALSE)","v":"Coupure du lien Internet"},{"$f":"VLOOKUP(ScnRisques[[#This Row],[RSK]],Risques[],RSK_Label,FALSE)","v":"Applications inaccessibles pour les utilisateurs"},{"$f":"VLOOKUP(ScnRisques[[#This Row],[SCN]],Scénarios[],SCN_Vc,FALSE)","v":"1-Improbable"},{"$f":"VLOOKUP(ScnRisques[[#This Row],[RSK]],Risques[],RSK_Rc,FALSE)","v":"2-Faible"}]
["SC7","R06",{"$f":"VLOOKUP(ScnRisques[[#This Row],[SCN]],Scénarios[],SCN_Label,FALSE)","v":"Panne du bastion d'administration"},{"$f":"VLOOKUP(ScnRisques[[#This Row],[RSK]],Risques[],RSK_Label,FALSE)","v":"Serveurs inaccessibles pour les administrateurs des clients"},{"$f":"VLOOKUP(ScnRisques[[#This Row],[SCN]],Scénarios[],SCN_Vc,FALSE)","v":"1-Improbable"},{"$f":"VLOOKUP(ScnRisques[[#This Row],[RSK]],Risques[],RSK_Rc,FALSE)","v":"1-Insignifiant"}]
["SC2","R02",{"$f":"VLOOKUP(ScnRisques[[#This Row],[SCN]],Scénarios[],SCN_Label,FALSE)","v":"Vol du PC portable d'un administrateur"},{"$f":"VLOOKUP(ScnRisques[[#This Row],[RSK]],Risques[],RSK_Label,FALSE)","v":"Divulgation de la liste des administrateurs des clients"},{"$f":"VLOOKUP(ScnRisques[[#This Row],[SCN]],Scénarios[],SCN_Vc,FALSE)","v":"1-Improbable"},{"$f":"VLOOKUP(ScnRisques[[#This Row],[RSK]],Risques[],RSK_Rc,FALSE)","v":"1-Insignifiant"}]
["SC8","R06",{"$f":"VLOOKUP(ScnRisques[[#This Row],[SCN]],Scénarios[],SCN_Label,FALSE)","v":"Coupure du lien Internet"},{"$f":"VLOOKUP(ScnRisques[[#This Row],[RSK]],Risques[],RSK_Label,FALSE)","v":"Serveurs inaccessibles pour les administrateurs des clients"},{"$f":"VLOOKUP(ScnRisques[[#This Row],[SCN]],Scénarios[],SCN_Vc,FALSE)","v":"1-Improbable"},{"$f":"VLOOKUP(ScnRisques[[#This Row],[RSK]],Risques[],RSK_Rc,FALSE)","v":"1-Insignifiant"}]

{"sheet":"Mesures","index":4,"n_rows":9,"n_cols":3,"rows_kept":9,"cut":false,"hidden":false,"merged":[]}
["ID","Libellé","Etat"]
["ACQ-R01","Utilisation systématique de stockage RAID5 ou supérieur","E"]
["COM-R01","Trois chemins d'accès Internet indépendants","E"]
["ORG-R01","Processus de gestion des mouvements de personnels","E"]
["ORG-R02","Règles d'utilisation des matériels mobiles","E"]
["ORG-R03","Authentification des administrateurs par token physique","E"]
["ACQ-R02","Redondance du bastion d'administration","E"]
["EXP-R03","Gestion prévisionnelle des ressources","P"]
["ORG-R04","Règles de transport des matériels","E"]

{"sheet":"ScnMes","index":5,"n_rows":9,"n_cols":11,"rows_kept":9,"cut":false,"hidden":false,"merged":[]}
["SCN","MES","Scénario","Mesure","Etat","Vi","Vc","Vf","M.Eff","M.Prog","ERR"]
["SC6","ACQ-R01",{"$f":"VLOOKUP(ScnMes[[#This Row],[SCN]],Scénarios[],SCN_Label,FALSE)","v":"Perte d'un disque de données"},{"$f":"VLOOKUP(ScnMes[[#This Row],[MES]],Mesures[],MES_Label,FALSE)","v":"Utilisation systématique de stockage RAID5 ou supérieur"},{"$f":"VLOOKUP(ScnMes[[#This Row],[MES]],Mesures[],3,FALSE)","v":"E"},{"$f":"VLOOKUP(ScnMes[[#This Row],[SCN]],Scénarios[],SCN_Vi,FALSE)","v":"4-Certain"},{"$f":"VLOOKUP(ScnMes[[#This Row],[SCN]],Scénarios[],SCN_Vc,FALSE)","v":"1-Improbable"},{"$f":"VLOOKUP(ScnMes[[#This Row],[SCN]],Scénarios[],SCN_Vf,FALSE)","v":"1-Improbable"},{"$f":"COUNTIFS(ScnMes[SCN],ScnMes[[#This Row],[SCN]],ScnMes[Etat],\"E\")","v":1},{"$f":"COUNTIFS(ScnMes[SCN],ScnMes[[#This Row],[SCN]],ScnMes[Etat],\"P\")","v":0},{"$f":"OR(AND(ScnMes[[#This Row],[Vi]]<>ScnMes[[#This Row],[Vc]],ScnMes[[#This Row],[M.Eff]]=0),AND(ScnMes[[#This Row],[Vc]]<>ScnMes[[#This Row],[Vf]],ScnMes[[#This Row],[M.Prog]]=0))","v":false}]
["SC8","COM-R01",{"$f":"VLOOKUP(ScnMes[[#This Row],[SCN]],Scénarios[],SCN_Label,FALSE)","v":"Coupure du lien Internet"},{"$f":"VLOOKUP(ScnMes[[#This Row],[MES]],Mesures[],MES_Label,FALSE)","v":"Trois chemins d'accès Internet indépendants"},{"$f":"VLOOKUP(ScnMes[[#This Row],[MES]],Mesures[],3,FALSE)","v":"E"},{"$f":"VLOOKUP(ScnMes[[#This Row],[SCN]],Scénarios[],SCN_Vi,FALSE)","v":"4-Certain"},{"$f":"VLOOKUP(ScnMes[[#This Row],[SCN]],Scénarios[],SCN_Vc,FALSE)","v":"1-Improbable"},{"$f":"VLOOKUP(ScnMes[[#This Row],[SCN]],Scénarios[],SCN_Vf,FALSE)","v":"1-Improbable"},{"$f":"COUNTIFS(ScnMes[SCN],ScnMes[[#This Row],[SCN]],ScnMes[Etat],\"E\")","v":1},{"$f":"COUNTIFS(ScnMes[SCN],ScnMes[[#This Row],[SCN]],ScnMes[Etat],\"P\")","v":0},{"$f":"OR(AND(ScnMes[[#This Row],[Vi]]<>ScnMes[[#This Row],[Vc]],ScnMes[[#This Row],[M.Eff]]=0),AND(ScnMes[[#This Row],[Vc]]<>ScnMes[[#This Row],[Vf]],ScnMes[[#This Row],[M.Prog]]=0))","v":false}]
["SC1","ORG-R01",{"$f":"VLOOKUP(ScnMes[[#This Row],[SCN]],Scénarios[],SCN_Label,FALSE)","v":"Droits d'accès maintenus à tort"},{"$f":"VLOOKUP(ScnMes[[#This Row],[MES]],Mesures[],MES_Label,FALSE)","v":"Processus de gestion des mouvements de personnels"},{"$f":"VLOOKUP(ScnMes[[#This Row],[MES]],Mesures[],3,FALSE)","v":"E"},{"$f":"VLOOKUP(ScnMes[[#This Row],[SCN]],Scénarios[],SCN_Vi,FALSE)","v":"3-Probable"},{"$f":"VLOOKUP(ScnMes[[#This Row],[SCN]],Scénarios[],SCN_Vc,FALSE)","v":"1-Improbable"},{"$f":"VLOOKUP(ScnMes[[#This Row],[SCN]],Scénarios[],SCN_Vf,FALSE)","v":"1-Improbable"},{"$f":"COUNTIFS(ScnMes[SCN],ScnMes[[#This Row],[SCN]],ScnMes[Etat],\"E\")","v":1},{"$f":"COUNTIFS(ScnMes[SCN],ScnMes[[#This Row],[SCN]],ScnMes[Etat],\"P\")","v":0},{"$f":"OR(AND(ScnMes[[#This Row],[Vi]]<>ScnMes[[#This Row],[Vc]],ScnMes[[#This Row],[M.Eff]]=0),AND(ScnMes[[#This Row],[Vc]]<>ScnMes[[#This Row],[Vf]],ScnMes[[#This Row],[M.Prog]]=0))","v":false}]
["SC2","ORG-R02",{"$f":"VLOOKUP(ScnMes[[#This Row],[SCN]],Scénarios[],SCN_Label,FALSE)","v":"Vol du PC portable d'un administrateur"},{"$f":"VLOOKUP(ScnMes[[#This Row],[MES]],Mesures[],MES_Label,FALSE)","v":"Règles d'utilisation des matériels mobiles"},{"$f":"VLOOKUP(ScnMes[[#This Row],[MES]],Mesures[],3,FALSE)","v":"E"},{"$f":"VLOOKUP(ScnMes[[#This Row],[SCN]],Scénarios[],SCN_Vi,FALSE)","v":"3-Probable"},{"$f":"VLOOKUP(ScnMes[[#This Row],[SCN]],Scénarios[],SCN_Vc,FALSE)","v":"1-Improbable"},{"$f":"VLOOKUP(ScnMes[[#This Row],[SCN]],Scénarios[],SCN_Vf,FALSE)","v":"1-Improbable"},{"$f":"COUNTIFS(ScnMes[SCN],ScnMes[[#This Row],[SCN]],ScnMes[Etat],\"E\")","v":2},{"$f":"COUNTIFS(ScnMes[SCN],ScnMes[[#This Row],[SCN]],ScnMes[Etat],\"P\")","v":0},{"$f":"OR(AND(ScnMes[[#This Row],[Vi]]<>ScnMes[[#This Row],[Vc]],ScnMes[[#This Row],[M.Eff]]=0),AND(ScnMes[[#This Row],[Vc]]<>ScnMes[[#This Row],[Vf]],ScnMes[[#This Row],[M.Prog]]=0))","v":false}]
["SC2","ORG-R03",{"$f":"VLOOKUP(ScnMes[[#This Row],[SCN]],Scénarios[],SCN_Label,FALSE)","v":"Vol du PC portable d'un administrateur"},{"$f":"VLOOKUP(ScnMes[[#This Row],[MES]],Mesures[],MES_Label,FALSE)","v":"Authentification des administrateurs par token physique"},{"$f":"VLOOKUP(ScnMes[[#This Row],[MES]],Mesures[],3,FALSE)","v":"E"},{"$f":"VLOOKUP(ScnMes[[#This Row],[SCN]],Scénarios[],SCN_Vi,FALSE)","v":"3-Probable"},{"$f":"VLOOKUP(ScnMes[[#This Row],[SCN]],Scénarios[],SCN_Vc,FALSE)","v":"1-Improbable"},{"$f":"VLOOKUP(ScnMes[[#This Row],[SCN]],Scénarios[],SCN_Vf,FALSE)","v":"1-Improbable"},{"$f":"COUNTIFS(ScnMes[SCN],ScnMes[[#This Row],[SCN]],ScnMes[Etat],\"E\")","v":2},{"$f":"COUNTIFS(ScnMes[SCN],ScnMes[[#This Row],[SCN]],ScnMes[Etat],\"P\")","v":0},{"$f":"OR(AND(ScnMes[[#This Row],[Vi]]<>ScnMes[[#This Row],[Vc]],ScnMes[[#This Row],[M.Eff]]=0),AND(ScnMes[[#This Row],[Vc]]<>ScnMes[[#This Row],[Vf]],ScnMes[[#This Row],[M.Prog]]=0))","v":false}]
["SC7","ACQ-R02",{"$f":"VLOOKUP(ScnMes[[#This Row],[SCN]],Scénarios[],SCN_Label,FALSE)","v":"Panne du bastion d'administration"},{"$f":"VLOOKUP(ScnMes[[#This Row],[MES]],Mesures[],MES_Label,FALSE)","v":"Redondance du bastion d'administration"},{"$f":"VLOOKUP(ScnMes[[#This Row],[MES]],Mesures[],3,FALSE)","v":"E"},{"$f":"VLOOKUP(ScnMes[[#This Row],[SCN]],Scénarios[],SCN_Vi,FALSE)","v":"4-Certain"},{"$f":"VLOOKUP(ScnMes[[#This Row],[SCN]],Scénarios[],SCN_Vc,FALSE)","v":"1-Improbable"},{"$f":"VLOOKUP(ScnMes[[#This Row],[SCN]],Scénarios[],SCN_Vf,FALSE)","v":"1-Improbable"},{"$f":"COUNTIFS(ScnMes[SCN],ScnMes[[#This Row],[SCN]],ScnMes[Etat],\"E\")","v":1},{"$f":"COUNTIFS(ScnMes[SCN],ScnMes[[#This Row],[SCN]],ScnMes[Etat],\"P\")","v":0},{"$f":"OR(AND(ScnMes[[#This Row],[Vi]]<>ScnMes[[#This Row],[Vc]],ScnMes[[#This Row],[M.Eff]]=0),AND(ScnMes[[#This Row],[Vc]]<>ScnMes[[#This Row],[Vf]],ScnMes[[#This Row],[M.Prog]]=0))","v":false}]
["SC3","EXP-R03",{"$f":"VLOOKUP(ScnMes[[#This Row],[SCN]],Scénarios[],SCN_Label,FALSE)","v":"Espace de sauvegarde saturé"},{"$f":"VLOOKUP(ScnMes[[#This Row],[MES]],Mesures[],MES_Label,FALSE)","v":"Gestion prévisionnelle des ressources"},{"$f":"VLOOKUP(ScnMes[[#This Row],[MES]],Mesures[],3,FALSE)","v":"P"},{"$f":"VLOOKUP(ScnMes[[#This Row],[SCN]],Scénarios[],SCN_Vi,FALSE)","v":"3-Probable"},{"$f":"VLOOKUP(ScnMes[[#This Row],[SCN]],Scénarios[],SCN_Vc,FALSE)","v":"3-Probable"},{"$f":"VLOOKUP(ScnMes[[#This Row],[SCN]],Scénarios[],SCN_Vf,FALSE)","v":"1-Improbable"},{"$f":"COUNTIFS(ScnMes[SCN],ScnMes[[#This Row],[SCN]],ScnMes[Etat],\"E\")","v":0},{"$f":"COUNTIFS(ScnMes[SCN],ScnMes[[#This Row],[SCN]],ScnMes[Etat],\"P\")","v":1},{"$f":"OR(AND(ScnMes[[#This Row],[Vi]]<>ScnMes[[#This Row],[Vc]],ScnMes[[#This Row],[M.Eff]]=0),AND(ScnMes[[#This Row],[Vc]]<>ScnMes[[#This Row],[Vf]],ScnMes[[#This Row],[M.Prog]]=0))","v":false}]
["SC5","ORG-R04",{"$f":"VLOOKUP(ScnMes[[#This Row],[SCN]],Scénarios[],SCN_Label,FALSE)","v":"Serveur volé lors d'un transfert entre salles"},{"$f":"VLOOKUP(ScnMes[[#This Row],[MES]],Mesures[],MES_Label,FALSE)","v":"Règles de transport des matériels"},{"$f":"VLOOKUP(ScnMes[[#This Row],[MES]],Mesures[],3,FALSE)","v":"E"},{"$f":"VLOOKUP(ScnMes[[#This Row],[SCN]],Scénarios[],SCN_Vi,FALSE)","v":"3-Probable"},{"$f":"VLOOKUP(ScnMes[[#This Row],[SCN]],Scénarios[],SCN_Vc,FALSE)","v":"1-Improbable"},{"$f":"VLOOKUP(ScnMes[[#This Row],[SCN]],Scénarios[],SCN_Vf,FALSE)","v":"1-Improbable"},{"$f":"COUNTIFS(ScnMes[SCN],ScnMes[[#This Row],[SCN]],ScnMes[Etat],\"E\")","v":1},{"$f":"COUNTIFS(ScnMes[SCN],ScnMes[[#This Row],[SCN]],ScnMes[Etat],\"P\")","v":0},{"$f":"OR(AND(ScnMes[[#This Row],[Vi]]<>ScnMes[[#This Row],[Vc]],ScnMes[[#This Row],[M.Eff]]=0),AND(ScnMes[[#This Row],[Vc]]<>ScnMes[[#This Row],[Vf]],ScnMes[[#This Row],[M.Prog]]=0))","v":false}]

{"sheet":"Histoire","index":6,"n_rows":3,"n_cols":3,"rows_kept":3,"cut":false,"hidden":false,"merged":[]}
["Version","Date","Commentaire"]
["0.0","2019-10-15","Ceci n'est qu'un démonstrateur, à recopier et adapter pour chaque analyse réelle"]
["0.1","2020-01-14","Correction du calcul de la vraisemblance synthétique"]

{"sheet":"Contexte","index":7,"n_rows":24,"n_cols":9,"rows_kept":24,"cut":false,"hidden":false,"merged":[]}
[]
[null,"ID","Critère",null,"ID","Scope",null,"ID","Mode"]
[null,"C","Confidentialité",null,"Base","Par défaut",null,"USG","Détournement de l'usage prévu"]
[null,"D","Disponibilité",null,null,null,null,"ESP","Espionnage"]
[null,"I","Intégrité",null,null,null,null,"DEP","Dépassement des limites de fonctionnement"]
[null,null,null,null,null,null,null,"DET","Déterioration"]
[null,null,null,null,null,null,null,"MOD","Modification, paramétrage, infection"]
[null,null,null,null,null,null,null,"PTE","Perte, disparition"]
[null,"ID","Source",null,"ID","Vecteur"]
[null,"ENV-EXCEPT","Facteur environnemental exceptionnel",null,"CAN_GESTCLI","Processus de gestion des clients"]
[null,"ENV-USUAL","Facteur environnemental courant",null,"CAN_GESTFNR","Processus de gestion des fournisseurs"]
[null,"EXT-HI-MLV","Intrus avec des capacités élevées",null,"CAN_GESTPER","Processus de gestion du personnel"]
[null,"EXT-LOW-MLD","Tiers maladroit (ex. travaux publics)",null,"LOC_XX","Locaux (générique)"]
[null,"EXT-LOW-MLV","Intrus avec de faibles capacités",null,"LOG_SYST","SGBD, OS, pare-feux, etc"]
[null,"EXT-MID-MLV","Intrus avec des capacités moyennes",null,"LOG_BACKUP","Logiciel de sauvegarde"]
[null,"PER-ADMIN-MLD","Administrateur interne maladroit",null,"MAT_PC_ADMIN","Postes de travail des administrateurs"]
[null,"PER-ADMIN-MLV","Administrateur interne malveillant",null,"MAT_RSX","Equipements réseaux"]
[null,"PER-DEV-MLD","Développeur interne maladroit",null,"MAT_STOR","Systèmes de stockage"]
[null,"PER-DEV-MLV","Développeur interne malveillant",null,"MAT_SVR","Serveurs"]
[null,"PER-GEN-MLV","Personnel non qualifié malveillant",null,"PER_ADMIN","Administrateurs"]
[null,"MAT","Evénement matériel (panne)",null,"PER_GEN","Personnel en général"]
[null,"SUB-MLD","Sous-traitant maladroit",null,"PER_USER","Utilisateur"]
[null,"SUB-MLV","Sous-traitant malveillant",null,"RSX_EXT","Liens Internet"]
[null,null,null,null,"RSX_INT","Liens réseaux internes"]

{"sheet":"Référentiel","index":8,"n_rows":15,"n_cols":5,"rows_kept":15,"cut":false,"hidden":false,"merged":[]}
["Vraisemblance",null,"Gravité",null,"Risque"]
["0-Impossible",null,"0-Négligeable",null,"0-NA"]
["1-Improbable",null,"1-Limitée",null,"1-Insignifiant"]
["2-Possible",null,"2-Importante",null,"2-Faible"]
["3-Probable",null,"3-Critique",null,"3-Important"]
["4-Certain",null,null,null,"4-Critique"]
[null,null,null,null,"5-Intolérable"]
[]
[]
["GV2R","0-Négligeable","1-Limitée","2-Importante","3-Critique"]
["0-Impossible","0-NA","0-NA","0-NA","0-NA"]
["1-Improbable","0-NA","1-Insignifiant","1-Insignifiant","2-Faible"]
["2-Possible","1-Insignifiant","2-Faible","2-Faible","3-Important"]
["3-Probable","1-Insignifiant","2-Faible","3-Important","4-Critique"]
["4-Certain","2-Faible","3-Important","4-Critique","5-Intolérable"]